fUSD/lending_fUSD_20260610
["ID","MTS","AMOUNT","RATE_DAILY","PERIOD"]
[424675508,1781041852000,-259.0,0.00016659,2]
[424675512,1781041852000,-156.35,0.00016776,2]
[424675506,1781041852000,-1798.80895522,0.00016469,2]
[424675504,1781041852000,-156.836525,0.00016438,2]
[424675507,1781041852000,-1000.0,0.000165,2]
[424675509,1781041852000,-928.78,0.000167,2]
[424675575,1781041853000,-5257.394979,0.00018,2]
[424675569,1781041853000,-2416.224079,0.00018,2]
[424675567,1781041853000,-151.0,0.00018,2]
[424675570,1781041853000,-151.0,0.00018,2]
[424675568,1781041853000,-2416.224079,0.00018,2]
[424675571,1781041853000,-151.0,0.00018,2]
[424675572,1781041853000,-151.0,0.00018,2]
[424675564,1781041853000,-2416.224079,0.00018,2]
[424675573,1781041853000,-151.0,0.00018,2]
[424675576,1781041853000,-489.961075,0.00018,2]
[424675586,1781041853000,-524.095183,0.00018,2]
[424675577,1781041853000,-489.961075,0.00018,2]
[424675578,1781041853000,-5257.394979,0.00018,2]
[424675582,1781041853000,-5257.394979,0.00018,2]
[424675581,1781041853000,-489.961075,0.00018,2]
[424675580,1781041853000,-5257.394979,0.00018,2]
[424675579,1781041853000,-489.961075,0.00018,2]
[424675583,1781041853000,-524.095183,0.00018,2]
[424675584,1781041853000,-524.095183,0.00018,2]
[424675585,1781041853000,-151.0,0.00018,2]
[424675565,1781041853000,-151.0,0.00018,2]
[424675574,1781041853000,-151.0,0.00018,2]
[424675566,1781041853000,-2416.224079,0.00018,2]
[424675540,1781041853000,-151.0,0.0001772,2]
[424675562,1781041853000,-151.0,0.00018,2]
[424675591,1781041853000,-450.0,0.00018007,2]
[424675539,1781041853000,-151.0,0.0001772,2]
[424675542,1781041853000,-151.0,0.0001772,2]
[424675541,1781041853000,-151.0,0.0001772,2]
[424675543,1781041853000,-151.0,0.0001772,2]
[424675545,1781041853000,-151.0,0.0001772,2]
[424675547,1781041853000,-1241.45556877,0.0001789,2]
[424675546,1781041853000,-151.0,0.0001772,2]
[424675548,1781041853000,-513.25,0.00017965,2]
[424675551,1781041853000,-300.0,0.00017999,2]
[424675563,1781041853000,-151.0,0.00018,2]
[424675549,1781041853000,-300.0,0.00017999,2]
[424675553,1781041853000,-300.0,0.00017999,2]
[424675556,1781041853000,-103164.66602279,0.00018,2]
[424675555,1781041853000,-300.0,0.00017999,2]
[424675552,1781041853000,-300.0,0.00017999,2]
[424675554,1781041853000,-300.0,0.00017999,2]
[424675558,1781041853000,-350.0,0.00018,2]
[424675559,1781041853000,-151.0,0.00018,2]
[424675561,1781041853000,-151.0,0.00018,2]
[424675557,1781041853000,-1209.48142739,0.00018,2]
[424675560,1781041853000,-151.0,0.00018,2]
[424675550,1781041853000,-697.11885021,0.00017999,2]
[424675590,1781041853000,-450.0,0.00018007,2]
[424675544,1781041853000,-151.0,0.0001772,2]
[424675587,1781041853000,-151.0,0.00018,2]
[424675619,1781041853000,-774.886158,0.000183,2]
[424675617,1781041853000,-774.886158,0.000183,2]
[424675614,1781041853000,-853.94608,0.000183,2]
[424675620,1781041853000,-774.886158,0.000183,2]
[424675623,1781041853000,-500.0,0.00018484,2]
[424675622,1781041853000,-1599.6,0.0001841,2]
[424675625,1781041853000,-166.05435715,0.000185,2]
[424675631,1781041853000,-154.6875,0.00018661,2]
[424675630,1781041853000,-232.56974424,0.00018661,2]
[424675624,1781041853000,-440.37621262,0.000185,2]
[424675616,1781041853000,-151.0,0.000183,2]
[424675626,1781041853000,-360.95488082,0.000185,2]
[424675629,1781041853000,-928.78,0.000186,2]
[424675633,1781041853000,-151.0,0.00018661,2]
[424675632,1781041853000,-693.39197629,0.00018661,2]
[424675636,1781041853000,-151.0,0.00018661,2]
[424675635,1781041853000,-174.61919141,0.00018661,2]
[424675634,1781041853000,-1428.38747117,0.00018661,2]
[424675637,1781041853000,-200.0,0.00018661,2]
[424675639,1781041853000,-209.40437684,0.00018661,2]
[424675638,1781041853000,-693.39197629,0.00018661,2]
[424675589,1781041853000,-274.62911,0.00018,2]
[424675627,1781041853000,-853.94608,0.000185,2]
[424675621,1781041853000,-249.0,0.00018322,2]
[424675628,1781041853000,-4899.97874023,0.000185,2]
[424675612,1781041853000,-166.05435715,0.000183,2]
[424675588,1781041853000,-524.095183,0.00018,2]
[424675618,1781041853000,-774.886158,0.000183,2]
[424675592,1781041853000,-450.0,0.00018007,2]
[424675594,1781041853000,-450.0,0.00018007,2]
[424675593,1781041853000,-450.0,0.00018007,2]
[424675595,1781041853000,-450.0,0.00018007,2]
[424675597,1781041853000,-450.0,0.00018007,2]
[424675596,1781041853000,-450.0,0.00018007,2]
[424675599,1781041853000,-245.0,0.00018007,2]
[424675601,1781041853000,-1804.87473419,0.000181,2]
[424675598,1781041853000,-450.0,0.00018007,2]
[424675602,1781041853000,-1377.42282658,0.00018113,2]
[424675600,1781041853000,-259.714256,0.00018029,2]
[424675613,1781041853000,-360.95488082,0.000183,2]
[424675604,1781041853000,-764.55886233,0.00018203,2]
[424675607,1781041853000,-156.35,0.00018234,2]
[424675606,1781041853000,-750.0,0.00018221,7]
[424675605,1781041853000,-1800.0,0.00018221,2]
[424675611,1781041853000,-440.37621262,0.000183,2]
[424675608,1781041853000,-300.0,0.00018299,2]
[424675609,1781041853000,-300.0,0.00018299,2]
[424675610,1781041853000,-300.0,0.00018299,2]
[424675603,1781041853000,-2005.9555727,0.00018113,2]
[424675615,1781041853000,-4899.97874023,0.000183,2]
[424675677,1781041854000,-151.0,0.00018661,2]
[424675671,1781041854000,-151.0,0.00018661,2]
[424675670,1781041854000,-151.0,0.00018661,2]
[424675675,1781041854000,-500.0,0.00018661,2]
[424675667,1781041854000,-500.0,0.00018661,2]
[424675668,1781041854000,-151.0,0.00018661,2]
[424675673,1781041854000,-152.0,0.00018661,2]
[424675672,1781041854000,-151.0,0.00018661,2]
[424675685,1781041854000,-152.0,0.00018661,2]
[424675669,1781041854000,-151.0,0.00018661,2]
[424675676,1781041854000,-721.12765534,0.00018661,2]
[424675691,1781041854000,-151.0,0.00018661,2]
[424675681,1781041854000,-151.0,0.00018661,2]
[424675682,1781041854000,-500.0,0.00018661,2]
[424675680,1781041854000,-152.0,0.00018661,2]
[424675683,1781041854000,-151.0,0.00018661,2]
[424675678,1781041854000,-151.0,0.00018661,2]
[424675684,1781041854000,-151.0,0.00018661,2]
[424675687,1781041854000,-151.0,0.00018661,2]
[424675686,1781041854000,-500.0,0.00018661,2]
[424675688,1781041854000,-151.0,0.00018661,2]
[424675689,1781041854000,-151.0,0.00018661,2]
[424675674,1781041854000,-151.0,0.00018661,2]
[424675679,1781041854000,-209.40437684,0.00018661,2]
[424675666,1781041854000,-209.40437684,0.00018661,2]
[424675642,1781041854000,-578.20924308,0.00018661,2]
[424675663,1781041854000,-152.0,0.00018661,2]
[424675643,1781041854000,-151.0,0.00018661,2]
[424675692,1781041854000,-500.0,0.00018661,2]
[424675641,1781041854000,-151.0,0.00018661,2]
[424675640,1781041854000,-151.0,0.00018661,2]
[424675644,1781041854000,-151.0,0.00018661,2]
[424675651,1781041854000,-152.0,0.00018661,2]
[424675650,1781041854000,-151.0,0.00018661,2]
[424675649,1781041854000,-2080.17592889,0.00018661,2]
[424675648,1781041854000,-151.0,0.00018661,2]
[424675652,1781041854000,-151.0,0.00018661,2]
[424675653,1781041854000,-151.0,0.00018661,2]
[424675665,1781041854000,-151.0,0.00018661,2]
[424675645,1781041854000,-151.0,0.00018661,2]
[424675647,1781041854000,-151.0,0.00018661,2]
[424675655,1781041854000,-4853.74383408,0.00018661,2]
[424675654,1781041854000,-9552.16786547,0.00018661,2]
[424675656,1781041854000,-152.0,0.00018661,2]
[424675661,1781041854000,-209.40437684,0.00018661,2]
[424675659,1781041854000,-500.0,0.00018661,2]
[424675657,1781041854000,-151.0,0.00018661,2]
[424675660,1781041854000,-151.0,0.00018661,2]
[424675658,1781041854000,-151.0,0.00018661,2]
[424675662,1781041854000,-151.0,0.00018661,2]
[424675664,1781041854000,-151.0,0.00018661,2]
[424675646,1781041854000,-151.0,0.00018661,2]
[424675690,1781041854000,-152.0,0.00018661,2]
[424675707,1781041854000,-151.0,0.00018661,2]
[424675693,1781041854000,-151.0,0.00018661,2]
[424675728,1781041854000,-1320.75332669,0.00018771,2]
[424675729,1781041854000,-151.0,0.00018771,2]
[424675727,1781041854000,-745.65223615,0.00018771,2]
[424675724,1781041854000,-719.04747942,0.00018716,2]
[424675722,1781041854000,-151.0,0.000187,2]
[424675723,1781041854000,-500.0,0.00018713,2]
[424675731,1781041854000,-360.95488082,0.000188,2]
[424675730,1781041854000,-440.37621262,0.000188,2]
[424675732,1781041854000,-853.94608,0.000188,2]
[424675741,1781041854000,-200.0,0.00018941,2]
[424675733,1781041854000,-4899.97874023,0.000188,2]
[424675725,1781041854000,-5033.33235594,0.00018716,2]
[424675734,1781041854000,-773.24136889,0.00018826,2]
[424675737,1781041854000,-151.0,0.00018881,2]
[424675738,1781041854000,-2000.0,0.00018905,7]
[424675694,1781041854000,-152.0,0.00018661,2]
[424675740,1781041854000,-151.0,0.00018936,2]
[424675736,1781041854000,-801.85129954,0.00018881,2]
[424675742,1781041854000,-156.35,0.00018964,2]
[424675744,1781041854000,-151.0,0.00018991,2]
[424675743,1781041854000,-862.28603014,0.00018991,2]
[424675747,1781041854000,-300.0,0.00018999,2]
[424675745,1781041854000,-300.0,0.00018999,2]
[424675746,1781041854000,-300.0,0.00018999,2]
[424675739,1781041854000,-831.51979762,0.00018936,2]
[424675726,1781041854000,-151.0,0.00018716,2]
[424675735,1781041854000,-151.0,0.00018826,2]
[424675721,1781041854000,-151.0,0.000187,2]
[424675720,1781041854000,-151.0,0.000187,2]
[424675695,1781041854000,-151.0,0.00018661,2]
[424675696,1781041854000,-500.0,0.00018661,2]
[424675698,1781041854000,-151.0,0.00018661,2]
[424675708,1781041854000,-500.0,0.00018661,2]
[424675699,1781041854000,-151.0,0.00018661,2]
[424675703,1781041854000,-151.0,0.00018661,2]
[424675700,1781041854000,-152.0,0.00018661,2]
[424675705,1781041854000,-151.0,0.00018661,2]
[424675701,1781041854000,-500.0,0.00018661,2]
[424675706,1781041854000,-152.0,0.00018661,2]
[424675702,1781041854000,-152.0,0.00018661,2]
[424675697,1781041854000,-200.0,0.00018661,2]
[424675709,1781041854000,-151.0,0.00018661,2]
[424675713,1781041854000,-151.0,0.00018661,2]
[424675704,1781041854000,-500.0,0.00018661,2]
[424675715,1781041854000,-440.37621262,0.000187,2]
[424675710,1781041854000,-151.0,0.00018661,2]
[424675716,1781041854000,-166.05435715,0.000187,2]
[424675714,1781041854000,-151.0,0.00018661,2]
[424675719,1781041854000,-4899.97874023,0.000187,2]
[424675718,1781041854000,-853.94608,0.000187,2]
[424675712,1781041854000,-151.0,0.00018661,2]
[424675717,1781041854000,-360.95488082,0.000187,2]
[424675711,1781041854000,-500.0,0.00018661,2]
[424675774,1781041855000,-223.960333,0.00019178,2]
[424675769,1781041855000,-186.921122,0.00019178,2]
[424675770,1781041855000,-186.921122,0.00019178,2]
[424675771,1781041855000,-223.960333,0.00019178,2]
[424675772,1781041855000,-223.960333,0.00019178,2]
[424675768,1781041855000,-186.921122,0.00019178,2]
[424675776,1781041855000,-223.960333,0.00019178,2]
[424675781,1781041855000,-428.871314,0.00019178,2]
[424675773,1781041855000,-223.960333,0.00019178,2]
[424675777,1781041855000,-223.960333,0.00019178,2]
[424675779,1781041855000,-428.871314,0.00019178,2]
[424675778,1781041855000,-223.960333,0.00019178,2]
[424675780,1781041855000,-428.871314,0.00019178,2]
[424675763,1781041855000,-151.0,0.00019101,2]
[424675775,1781041855000,-223.960333,0.00019178,2]
[424675767,1781041855000,-186.921122,0.00019178,2]
[424675754,1781041855000,-483021.75247357,0.00019,2]
[424675765,1781041855000,-961.58486558,0.00019156,2]
[424675750,1781041855000,-300.0,0.00018999,2]
[424675748,1781041855000,-300.0,0.00018999,2]
[424675749,1781041855000,-300.0,0.00018999,2]
[424675751,1781041855000,-440.37621262,0.00019,2]
[424675782,1781041855000,-428.871314,0.00019178,2]
[424675756,1781041855000,-4899.97874023,0.00019,2]
[424675760,1781041855000,-894.19061325,0.00019046,2]
[424675759,1781041855000,-500.0,0.00019038,2]
[424675755,1781041855000,-853.94608,0.00019,2]
[424675753,1781041855000,-5245.26960294,0.00019,2]
[424675758,1781041855000,-2000.0,0.00019,2]
[424675761,1781041855000,-151.0,0.00019046,2]
[424675757,1781041855000,-7029.88368986,0.00019,2]
[424675762,1781041855000,-927.27566594,0.00019101,2]
[424675764,1781041855000,-764.55886233,0.00019122,2]
[424675766,1781041855000,-151.0,0.00019156,2]
[424675783,1781041855000,-428.871314,0.00019178,2]
[424675752,1781041855000,-360.95488082,0.00019,2]
[424675786,1781041855000,-428.871314,0.00019178,2]
[424675806,1781041855000,-300.0,0.00019499,2]
[424675809,1781041855000,-52486.79364518,0.000195,2]
[424675804,1781041855000,-300.0,0.00019499,2]
[424675815,1781041855000,-1536.04360648,0.00019757,2]
[424675814,1781041855000,-154.6875,0.00019757,2]
[424675808,1781041855000,-300.0,0.00019499,2]
[424675813,1781041855000,-232.56974424,0.00019757,2]
[424675810,1781041855000,-4899.97874023,0.000196,2]
[424675811,1781041855000,-500.0,0.00019609,2]
[424675816,1781041855000,-187.78006524,0.00019757,2]
[424675817,1781041855000,-745.65223615,0.00019757,2]
[424675818,1781041855000,-225.18697532,0.00019757,2]
[424675819,1781041855000,-2236.95670847,0.00019757,2]
[424675820,1781041855000,-10272.10520532,0.00019757,2]
[424675784,1781041855000,-428.871314,0.00019178,2]
[424675807,1781041855000,-300.0,0.00019499,2]
[424675805,1781041855000,-300.0,0.00019499,2]
[424675812,1781041855000,-156.35,0.00019693,2]
[424675801,1781041855000,-997.16350561,0.00019211,2]
[424675803,1781041855000,-4899.97874023,0.000194,2]
[424675787,1781041855000,-4899.97874023,0.000192,2]
[424675785,1781041855000,-428.871314,0.00019178,2]
[424675788,1781041855000,-232.56974424,0.00019209,2]
[424675789,1781041855000,-154.6875,0.00019209,2]
[424675790,1781041855000,-1481.2378076,0.00019209,2]
[424675792,1781041855000,-719.04747942,0.00019209,2]
[424675793,1781041855000,-217.15233878,0.00019209,2]
[424675791,1781041855000,-181.08010149,0.00019209,2]
[424675795,1781041855000,-9905.59807649,0.00019209,2]
[424675796,1781041855000,-151.0,0.00019209,2]
[424675797,1781041855000,-217.15233878,0.00019209,2]
[424675798,1781041855000,-151.0,0.00019209,2]
[424675799,1781041855000,-217.15233878,0.00019209,2]
[424675800,1781041855000,-299.0,0.00019209,2]
[424675794,1781041855000,-2157.14243826,0.00019209,2]
[424675802,1781041855000,-151.0,0.00019211,2]
[424675845,1781041856000,-500.0,0.00019999,2]
[424675854,1781041856000,-500.0,0.00019999,2]
[424675857,1781041856000,-500.0,0.00019999,2]
[424675855,1781041856000,-500.0,0.00019999,2]
[424675843,1781041856000,-232.82938967,0.00019999,2]
[424675850,1781041856000,-500.0,0.00019999,2]
[424675851,1781041856000,-500.0,0.00019999,2]
[424675858,1781041856000,-500.0,0.00019999,2]
[424675856,1781041856000,-500.0,0.00019999,2]
[424675852,1781041856000,-500.0,0.00019999,2]
[424675863,1781041856000,-500.0,0.00019999,2]
[424675860,1781041856000,-500.0,0.00019999,2]
[424675859,1781041856000,-200.0,0.00019999,2]
[424675865,1781041856000,-500.0,0.00019999,2]
[424675862,1781041856000,-500.0,0.00019999,2]
[424675872,1781041856000,-500.0,0.00019999,2]
[424675867,1781041856000,-375.36466492,0.00019999,2]
[424675864,1781041856000,-500.0,0.00019999,2]
[424675869,1781041856000,-500.0,0.00019999,2]
[424675873,1781041856000,-500.0,0.00019999,2]
[424675847,1781041856000,-500.0,0.00019999,2]
[424675853,1781041856000,-183.77543273,0.00019999,2]
[424675846,1781041856000,-500.0,0.00019999,2]
[424675825,1781041856000,-513.25,0.00019761,2]
[424675842,1781041856000,-150.73699082,0.00019999,2]
[424675821,1781041856000,-151.0,0.00019757,2]
[424675822,1781041856000,-225.18697532,0.00019757,2]
[424675823,1781041856000,-151.0,0.00019757,2]
[424675826,1781041856000,-4899.97874023,0.000198,2]
[424675824,1781041856000,-225.18697532,0.00019757,2]
[424675871,1781041856000,-500.0,0.00019999,2]
[424675830,1781041856000,-300.0,0.00019949,2]
[424675829,1781041856000,-210.40552976,0.000199,2]
[424675833,1781041856000,-300.0,0.00019949,2]
[424675832,1781041856000,-300.0,0.00019949,2]
[424675844,1781041856000,-500.0,0.00019999,2]
[424675828,1781041856000,-210.40552976,0.000199,2]
[424675837,1781041856000,-16103.29,0.00019968,2]
[424675834,1781041856000,-300.0,0.00019949,2]
[424675836,1781041856000,-468.85,0.00019968,2]
[424675835,1781041856000,-504713.30331671,0.0001995,15]
[424675838,1781041856000,-300.0,0.00019999,2]
[424675849,1781041856000,-574.22796345,0.00019999,2]
[424675840,1781041856000,-500.0,0.00019999,2]
[424675839,1781041856000,-300.0,0.00019999,2]
[424675848,1781041856000,-500.0,0.00019999,2]
[424675841,1781041856000,-572.48141547,0.00019999,2]
[424675831,1781041856000,-300.0,0.00019949,2]
[424675861,1781041856000,-500.0,0.00019999,2]
[424675827,1781041856000,-3865.64286019,0.000199,3]
[424675866,1781041856000,-500.0,0.00019999,2]
[424675901,1781041856000,-4465.0,0.0002,2]
[424675903,1781041856000,-592.0,0.0002,2]
[424675900,1781041856000,-2256.0,0.0002,2]
[424675909,1781041856000,-1271.0,0.0002,2]
[424675905,1781041856000,-817.0,0.0002,2]
[424675904,1781041856000,-2206.0,0.0002,2]
[424675910,1781041856000,-343.0,0.0002,2]
[424675906,1781041856000,-653.0,0.0002,2]
[424675908,1781041856000,-735.0,0.0002,2]
[424675902,1781041856000,-781.0,0.0002,2]
[424675898,1781041856000,-839.0,0.0002,2]
[424675907,1781041856000,-3344.0,0.0002,2]
[424675913,1781041856000,-152.0,0.00020003,2]
[424675914,1781041856000,-152.0,0.00020003,2]
[424675920,1781041856000,-764.55886233,0.00020042,2]
[424675915,1781041856000,-151.0,0.00020003,2]
[424675919,1781041856000,-217.15233878,0.0002003,2]
[424675916,1781041856000,-151.0,0.00020003,2]
[424675918,1781041856000,-151.0,0.00020003,2]
[424675921,1781041856000,-43.85876014,0.00020045,2]
[424675917,1781041856000,-151.0,0.00020003,2]
[424675868,1781041856000,-500.0,0.00019999,2]
[424675912,1781041856000,-152.0,0.00020003,2]
[424675899,1781041856000,-700.0,0.0002,2]
[424675911,1781041856000,-6475.04,0.0002,2]
[424675894,1781041856000,-400.0,0.0002,2]
[424675893,1781041856000,-2895.40938311,0.0002,2]
[424675870,1781041856000,-500.0,0.00019999,2]
[424675875,1781041856000,-491.51226608,0.00019999,2]
[424675883,1781041856000,-26840.37437958,0.0002,2]
[424675884,1781041856000,-1314.77233542,0.0002,2]
[424675874,1781041856000,-550.0,0.00019999,2]
[424675877,1781041856000,-5291.53444339,0.0002,2]
[424675880,1781041856000,-25984.28549199,0.0002,2]
[424675876,1781041856000,-652.08853766,0.0002,2]
[424675878,1781041856000,-1557.47112024,0.0002,2]
[424675881,1781041856000,-3966.66481669,0.0002,2]
[424675879,1781041856000,-179.21555397,0.0002,2]
[424675886,1781041856000,-200.0,0.0002,2]
[424675895,1781041856000,-4899.97874023,0.0002,2]
[424675882,1781041856000,-3950.0,0.0002,2]
[424675890,1781041856000,-8000.0,0.0002,2]
[424675892,1781041856000,-152.0,0.0002,2]
[424675891,1781041856000,-13125.31550498,0.0002,2]
[424675889,1781041856000,-52457.76322009,0.0002,2]
[424675888,1781041856000,-26828.28891392,0.0002,2]
[424675887,1781041856000,-1061.28257444,0.0002,2]
[424675885,1781041856000,-9999.99999901,0.0002,2]
[424675897,1781041856000,-697.0,0.0002,2]
[424675896,1781041856000,-390.411394,0.0002,2]
[424675941,1781041858000,-500.0,0.00020164,2]
[424675939,1781041858000,-421.91665544,0.00020048,2]
[424675946,1781041858000,-250.0,0.00020217,2]
[424675944,1781041858000,-193.0,0.00020213,2]
[424675940,1781041858000,-928.78,0.000201,2]
[424675937,1781041858000,-500.0,0.00018438,2]
[424675951,1781041858000,-250.0,0.00020217,2]
[424675943,1781041858000,-652.08853766,0.000202,2]
[424675945,1781041858000,-250.0,0.00020217,2]
[424675948,1781041858000,-250.0,0.00020217,2]
[424675938,1781041858000,-1956.14123986,0.00020045,2]
[424675954,1781041858000,-217.0,0.00020217,2]
[424675942,1781041858000,-500.0,0.00020197,2]
[424675947,1781041858000,-250.0,0.00020217,2]
[424675923,1781041858000,-2474.72645236,0.00010593,2]
[424675935,1781041858000,-500.0,0.00014688,2]
[424675934,1781041858000,-500.0,0.00014092,2]
[424675933,1781041858000,-500.0,0.00013698,2]
[424675932,1781041858000,-500.0,0.00013698,2]
[424675930,1781041858000,-500.0,0.00013698,2]
[424675929,1781041858000,-500.0,0.00013698,2]
[424675927,1781041858000,-2474.72645236,0.00011062,2]
[424675928,1781041858000,-2474.72645236,0.00011143,2]
[424675931,1781041858000,-500.0,0.00013698,2]
[424675926,1781041858000,-2474.72645236,0.00010973,2]
[424675924,1781041858000,-2474.72645236,0.0001075,2]
[424675925,1781041858000,-2474.72645236,0.00010871,2]
[424675922,1781041858000,-2474.72645236,0.00010213,2]
[424675953,1781041858000,-250.0,0.00020217,2]
[424675936,1781041858000,-500.0,0.00018438,2]
[424675956,1781041858000,-300.0,0.0002022,2]
[424675950,1781041858000,-250.0,0.00020217,2]
[424675949,1781041858000,-250.0,0.00020217,2]
[424675952,1781041858000,-250.0,0.00020217,2]
[424675986,1781041858000,-500.0,0.00020803,2]
[424675985,1781041858000,-652.08853766,0.000208,2]
[424675981,1781041858000,-316.0,0.000204,2]
[424675979,1781041858000,-309.0,0.000204,2]
[424675982,1781041858000,-888.0,0.000204,2]
[424675978,1781041858000,-652.08853766,0.000204,2]
[424675983,1781041858000,-150.0,0.0002058,2]
[424675980,1781041858000,-1000.0,0.000204,2]
[424675974,1781041858000,-222.77500589,0.00020305,2]
[424675977,1781041858000,-1599.6,0.00020381,2]
[424675976,1781041858000,-233.5188934,0.00020305,2]
[424675975,1781041858000,-151.0,0.00020305,2]
[424675973,1781041858000,-10.74388751,0.00020305,2]
[424675968,1781041858000,-773.24136889,0.00020305,2]
[424675984,1781041858000,-652.08853766,0.000206,2]
[424675965,1781041858000,-154.6875,0.00020305,2]
[424675969,1781041858000,-233.5188934,0.00020305,2]
[424675957,1781041858000,-300.0,0.0002022,2]
[424675959,1781041858000,-300.0,0.0002022,2]
[424675961,1781041858000,-300.0,0.0002022,2]
[424675972,1781041858000,-151.0,0.00020305,2]
[424675971,1781041858000,-2319.72410669,0.00020305,2]
[424675955,1781041858000,-300.0,0.0002022,2]
[424675960,1781041858000,-300.0,0.0002022,2]
[424675967,1781041858000,-194.72792766,0.00020305,2]
[424675962,1781041858000,-300.0,0.0002022,2]
[424675970,1781041858000,-10652.17309792,0.00020305,2]
[424675958,1781041858000,-300.0,0.0002022,2]
[424675963,1781041858000,-414.0,0.0002022,2]
[424675964,1781041858000,-232.56974424,0.00020305,2]
[424675966,1781041858000,-1592.87721992,0.00020305,2]
[424676018,1781041859000,-839.0,0.00021,2]
[424676028,1781041859000,-3344.0,0.00021,2]
[424676017,1781041859000,-697.0,0.00021,2]
[424676022,1781041859000,-781.0,0.00021,2]
[424676023,1781041859000,-592.0,0.00021,2]
[424676020,1781041859000,-2256.0,0.00021,2]
[424676031,1781041859000,-343.0,0.00021,2]
[424676021,1781041859000,-4465.0,0.00021,2]
[424676030,1781041859000,-1271.0,0.00021,2]
[424676025,1781041859000,-3054.0,0.00021,2]
[424676024,1781041859000,-2206.0,0.00021,2]
[424676026,1781041859000,-817.0,0.00021,2]
[424676029,1781041859000,-735.0,0.00021,2]
[424676035,1781041859000,-1125.0,0.00021103,2]
[424676042,1781041859000,-453.66,0.00021205,2]
[424676033,1781041859000,-350.0,0.00021002,4]
[424676032,1781041859000,-215.89329178,0.00021,30]
[424676034,1781041859000,-2000.0,0.00021014,7]
[424676036,1781041859000,-350.0,0.00021192,4]
[424676038,1781041859000,-210.33036977,0.00021202,2]
[424676039,1781041859000,-183.66697519,0.00021202,2]
[424676040,1781041859000,-330.26995479,0.00021202,2]
[424676037,1781041859000,-195.63917713,0.000212,2]
[424676041,1781041859000,-199.64334801,0.00021202,2]
[424676043,1781041859000,-350.0,0.00021214,4]
[424676016,1781041859000,-390.411394,0.00021,2]
[424676027,1781041859000,-653.0,0.00021,2]
[424676013,1781041859000,-6111.0,0.00021,2]
[424675999,1781041859000,-54498.09020433,0.000209,30]
[424676010,1781041859000,-1434.66206773,0.00021,2]
[424676044,1781041859000,-16103.29,0.00021273,2]
[424675994,1781041859000,-2405.55389863,0.00020853,2]
[424675987,1781041859000,-232.56974424,0.00020853,2]
[424675995,1781041859000,-151.0,0.00020853,2]
[424675989,1781041859000,-1651.81367706,0.00020853,2]
[424675988,1781041859000,-154.6875,0.00020853,2]
[424675992,1781041859000,-242.15909246,0.00020853,2]
[424675991,1781041859000,-431.83876822,0.00020853,2]
[424675990,1781041859000,-201.93286098,0.00020853,2]
[424675993,1781041859000,-11046.30350254,0.00020853,2]
[424675996,1781041859000,-242.15909246,0.00020853,2]
[424676000,1781041859000,-4046.0,0.00020923,2]
[424676019,1781041859000,-700.0,0.00021,2]
[424675998,1781041859000,-362.87495286,0.00020853,2]
[424675997,1781041859000,-151.0,0.00020853,2]
[424676001,1781041859000,-161.985143,0.00020932,2]